bitfinex/quotes_BTCUSD_20210402
["timestamp","ask_amount","ask_price","bid_price","bid_amount"]
[1617397307315,0.03300781,58520.0,58505.0,3.17]
[1617397307512,0.002,58525.0,58504.0,0.004]
[1617397307718,0.256162,58520.0,58504.0,0.004]
[1617397307915,0.388096,58519.0,58498.0,0.2]
[1617397308117,0.21904806,58518.0,58498.0,0.2]
[1617397308315,0.388096,58517.0,58498.0,0.2]
[1617397308516,0.97,58516.0,58495.0,0.004]
[1617397308726,0.256228,58507.0,58491.0,0.00300781]
[1617397308924,0.21904806,58504.0,58485.0,0.00300781]
[1617397309122,0.21904806,58504.0,58481.0,1.35654374]
[1617397309123,0.388096,58503.0,58482.0,0.00300781]
[1617397309349,0.74797,58504.0,58483.0,0.54991874]
[1617397309555,0.52297,58504.0,58484.0,0.40295155]
[1617397309743,0.52297,58504.0,58484.0,0.00300781]
[1617397309744,0.50797,58504.0,58484.0,0.00300781]
[1617397309946,0.388096,58503.0,58484.0,0.00300781]
[1617397310348,0.14,58502.0,58484.0,0.00300781]
[1617397310548,0.388096,58501.0,58482.0,0.00300781]
[1617397311144,0.644335,58501.0,58482.0,0.00300781]
[1617397311547,0.29,58500.0,58482.0,0.00300781]
[1617397311749,0.29,58500.0,58475.0,0.49695155]
[1617397311750,2.36,58498.0,58475.0,0.49695155]
[1617397311963,0.388096,58497.0,58477.0,0.002]
[1617397312163,0.47338312,58496.0,58477.0,0.002]
[1617397312363,0.388073,58495.0,58477.0,0.002]
[1617397312762,0.256266,58496.0,58477.0,0.002]
[1617397313163,0.21711712,58495.0,58477.0,0.002]
[1617397313561,0.00300781,58494.0,58477.0,0.002]
[1617397313762,0.45,58493.0,58477.0,0.002]
[1617397314030,0.388073,58492.0,58477.0,0.002]
[1617397314233,0.00300781,58491.0,58475.0,0.2]
[1617397314628,0.22012493,58491.0,58475.0,0.2]
[1617397314828,0.00300781,58491.0,58475.0,0.2]
[1617397315031,0.05300781,58491.0,58475.0,0.2]
[1617397315431,0.256288,58490.0,58475.0,0.2]
[1617397315634,0.00300781,58489.0,58475.0,0.2]
[1617397316431,0.21700781,58489.0,58475.0,0.2]
[1617397317030,0.05300781,58489.0,58475.0,0.2]
[1617397317432,0.00300781,58489.0,58475.0,0.2]
[1617397317631,0.256288,58490.0,58475.0,0.2]
[1617397318040,0.004,58492.0,58475.0,0.2]
[1617397318434,0.00300781,58493.0,58476.0,0.160011]
[1617397318638,5.63238585,58522.0,58476.0,0.160011]
[1617397318639,0.25926481,58496.0,58476.0,0.210011]
[1617397318839,0.25926481,58496.0,58476.0,0.310011]
[1617397318840,0.00300781,58496.0,58476.0,0.310011]
[1617397319036,0.00300781,58501.0,58478.0,0.002]
[1617397319238,0.00300781,58501.0,58479.0,0.159996]
[1617397319435,0.00300781,58505.0,58479.0,0.159996]
[1617397319848,0.00300781,58505.0,58479.0,0.209996]
[1617397319849,0.22012493,58505.0,58479.0,0.209996]
[1617397320046,0.22012493,58505.0,58479.0,0.204996]
[1617397320452,0.0042,58504.0,58478.0,0.102]
[1617397320650,0.00300781,58503.0,58478.0,0.002]
[1617397321450,0.158,58498.0,58478.0,0.002]
[1617397321652,0.0042,58496.0,58478.0,0.002]
[1617397321851,0.0042,58496.0,58475.0,0.3]
[1617397322060,0.306268,58493.0,58475.0,0.3]
[1617397322870,0.159,58482.0,58475.0,0.2]
[1617397323077,0.21711712,58481.0,58476.0,0.16001]
[1617397323270,0.21711712,58481.0,58463.0,0.35516524]
[1617397323483,0.21711712,58481.0,58466.0,0.160045]
[1617397323675,0.128181,58478.0,58466.0,0.160045]
[1617397323874,0.178181,58478.0,58467.0,0.02008769]
[1617397324072,0.12011,58478.0,58467.0,0.02008769]
[1617397324269,0.12011,58478.0,58467.0,0.01508769]
[1617397324472,0.12011,58478.0,58464.0,0.005]
[1617397324675,0.296347,58473.0,58464.0,0.005]
[1617397324873,0.05,58473.0,58464.0,0.005]
[1617397325093,0.00300781,58477.0,58464.0,0.005]
[1617397325294,0.07011,58478.0,58464.0,0.005]
[1617397325692,0.145,58477.0,58474.0,0.03219445]
[1617397325895,0.341814,58476.0,58474.0,0.03219445]
[1617397326096,0.07011,58478.0,58474.0,0.03219445]
[1617397326295,0.00011,58478.0,58474.0,0.03219445]
[1617397326694,0.14863781,58483.0,58474.0,0.03219445]
[1617397326894,0.2152291,58482.0,58474.0,0.03219445]
[1617397327096,0.388073,58482.0,58474.0,0.03219445]
[1617397327495,0.00300781,58482.0,58474.0,0.03219445]
[1617397327723,0.256321,58480.0,58474.0,0.03219445]
[1617397328528,0.00300781,58491.0,58474.0,0.03219445]
[1617397328922,0.00300781,58492.0,58474.0,0.03219445]
[1617397329173,0.00300781,58489.0,58474.0,0.03219445]
[1617397329575,0.00300781,58491.0,58474.0,0.03219445]
[1617397329772,0.00300781,58491.0,58475.0,0.2152291]
[1617397329974,0.256261,58491.0,58475.0,0.2152291]
[1617397330175,0.00300781,58490.0,58475.0,0.2152291]
[1617397330373,0.00300781,58492.0,58475.0,0.2152291]
[1617397330772,7.81e-06,58492.0,58476.0,3.89]
[1617397330973,7.81e-06,58492.0,58477.0,0.62]
[1617397331176,7.81e-06,58492.0,58477.0,0.77]
[1617397331977,7.81e-06,58492.0,58477.0,1.026235]
[1617397332178,7.81e-06,58492.0,58478.0,0.18934769]
[1617397332577,0.00756746,58491.0,58478.0,0.02933769]
[1617397332777,0.00756746,58491.0,58477.0,0.926235]
[1617397332975,5.00756746,58491.0,58485.0,0.01]
[1617397333378,0.205,58490.0,58485.0,0.01]
[1617397333980,0.47730982,58490.0,58485.0,0.01]
[1617397334378,0.388073,58489.0,58485.0,0.01]
[1617397334778,0.83,58488.0,58485.0,0.01]
[1617397335177,1.283073,58487.0,58485.0,0.01]
[1617397335800,1.539354,58487.0,58485.0,0.01]
[1617397336402,1.55538282,58487.0,58485.0,0.01]
[1617397336802,2.6999149,58486.0,58485.0,0.005]
[1617397337000,0.4899149,58486.0,58485.0,0.005]
[1617397337602,0.75722472,58486.0,58485.0,0.005]
[1617397338005,0.4899149,58486.0,58485.0,0.005]
[1617397338417,0.4466979,58486.0,58485.0,0.005]
[1617397339226,4.71400772,58491.0,58485.0,0.005]
[1617397339831,4.71400772,58491.0,58486.0,0.21921234]
[1617397340231,4.71400772,58491.0,58488.0,0.256183]
[1617397340424,4.71400772,58491.0,58489.0,0.06017577]
[1617397340872,4.71400772,58491.0,58488.0,0.306183]
[1617397341271,4.71400772,58491.0,58488.0,0.434268]
[1617397341470,4.71089523,58491.0,58488.0,0.434268]
[1617397341671,4.45489523,58491.0,58488.0,0.434268]
[1617397341870,4.45489523,58491.0,58489.0,0.22067264]
[1617397342873,4.19889523,58491.0,58489.0,0.1]
[1617397343274,4.19889523,58491.0,58488.0,0.384268]
[1617397343482,0.00756675,58490.0,58488.0,0.384268]
[1617397343875,0.00256675,58490.0,58489.0,2.87]
[1617397344105,0.00256675,58490.0,58489.0,0.18]
[1617397344305,0.00256675,58490.0,58489.0,0.23358727]
[1617397344510,0.00256675,58490.0,58489.0,0.18]
[1617397344701,4.19146198,58491.0,58489.0,0.18]
[1617397344914,3.93546198,58491.0,58489.0,0.18]
[1617397345509,3.93546198,58491.0,58489.0,0.23]
[1617397345705,3.93546198,58491.0,58489.0,0.33]
[1617397345910,3.67946198,58491.0,58489.0,0.33]
[1617397346321,3.67946198,58491.0,58489.0,0.28]
[1617397346525,3.67946198,58491.0,58489.0,0.33]
[1617397347324,3.67946198,58491.0,58488.0,0.256183]
[1617397348520,3.67946198,58491.0,58488.0,0.306183]
[1617397348733,3.42346198,58491.0,58488.0,0.306183]
[1617397348931,3.42346198,58491.0,58489.0,0.1]
[1617397349334,3.16746198,58491.0,58489.0,0.1]
[1617397349534,3.16746198,58491.0,58490.0,4.105]
[1617397349735,3.16746198,58491.0,58490.0,4.411]
[1617397349936,2.66746198,58491.0,58490.0,4.691]
[1617397350933,2.41146198,58491.0,58490.0,4.691]
[1617397351354,2.41146198,58491.0,58490.0,4.850968]
[1617397351556,2.36146198,58491.0,58490.0,4.850968]
[1617397351759,2.35791648,58491.0,58490.0,4.850968]
[1617397351957,2.09400866,58491.0,58490.0,4.810968]
[1617397352955,1.83800866,58491.0,58490.0,4.810968]
[1617397353357,1.83800866,58491.0,58490.0,4.850968]
[1617397353558,1.83230866,58491.0,58490.0,5.100968]
[1617397353754,1.83230866,58491.0,58490.0,5.49791955]
[1617397353981,1.83230866,58491.0,58490.0,5.100968]
[1617397354378,1.57630866,58491.0,58490.0,5.100968]
[1617397355177,1.32030866,58491.0,58490.0,5.100968]
[1617397355584,8.66e-06,58491.0,58490.0,5.100968]
[1617397355787,1.7791,58493.0,58491.0,0.39695155]
[1617397355984,0.25611,58520.0,58510.0,13.4769]
[1617397356191,0.25611,58520.0,58519.0,0.13936037]
[1617397356393,0.0052,58525.0,58519.0,0.13936037]
[1617397356394,0.0052,58525.0,58519.0,0.29920937]
[1617397356612,0.0012,58525.0,58512.0,0.64217541]
[1617397356811,0.0012,58525.0,58514.0,0.39695155]
[1617397357006,0.0012,58525.0,58515.0,0.15986]
[1617397358008,0.0012,58525.0,58515.0,0.20986]
[1617397358408,0.0462,58532.0,58516.0,3.89]
[1617397358608,0.28335181,58532.0,58517.0,0.60980936]
[1617397358807,0.0462,58532.0,58518.0,0.09900344]
[1617397359016,0.0462,58532.0,58519.0,0.16285081]
[1617397359297,0.427016,58533.0,58521.0,0.39695155]
[1617397359298,0.256071,58531.0,58521.0,0.39695155]
[1617397359495,0.256071,58531.0,58522.0,0.159833]
[1617397359694,0.256071,58531.0,58522.0,0.2]
[1617397359892,0.256071,58531.0,58519.0,0.00300781]
[1617397360091,0.256071,58531.0,58520.0,0.159839]
[1617397360295,0.256071,58531.0,58521.0,0.00300781]
[1617397360493,0.256071,58531.0,58521.0,0.24774487]
[1617397360692,0.256071,58531.0,58519.0,0.00300781]
[1617397360895,0.256071,58531.0,58520.0,0.159839]
[1617397361094,0.256071,58531.0,58521.0,0.24774487]
[1617397361298,0.256071,58531.0,58521.0,0.00300781]
[1617397361494,0.256071,58531.0,58516.0,0.00300781]
[1617397361696,0.256071,58531.0,58516.0,1.00300781]
[1617397361916,0.256071,58531.0,58518.0,0.00300781]
[1617397362116,0.256071,58531.0,58520.0,0.00300781]
[1617397362718,0.427016,58533.0,58520.0,0.00300781]
[1617397362918,0.256049,58535.0,58520.0,0.00300781]
[1617397364318,0.256049,58535.0,58531.0,0.014292]
[1617397364545,0.388073,58534.0,58531.0,0.014292]
[1617397366745,0.256035,58538.0,58531.0,0.014292]
[1617397366945,0.388073,58537.0,58531.0,0.014292]
[1617397367579,0.97,58544.0,58540.0,12.832792]
[1617397367774,0.256044,58542.0,58540.0,12.832792]
[1617397367971,0.256044,58542.0,58541.0,1.0]
[1617397368174,1.226044,58542.0,58541.0,1.0]
[1617397368374,0.256044,58542.0,58541.0,1.39695155]
[1617397368774,0.256044,58542.0,58541.0,1.0]
[1617397368974,1.221044,58542.0,58541.0,1.0]
[1617397369791,0.251044,58542.0,58541.0,1.0]
[1617397370492,1.221044,58542.0,58541.0,1.0]
[1617397371094,0.251044,58542.0,58541.0,1.0]
[1617397371496,0.251044,58542.0,58541.0,1.39695155]
[1617397371695,0.251044,58542.0,58541.0,1.44588]
[1617397372919,0.426911,58545.0,58542.0,0.14]
[1617397373119,0.256021,58546.0,58542.0,0.14]
[1617397373518,0.97,58545.0,58542.0,0.14]
[1617397373719,0.256021,58546.0,58542.0,0.14]
[1617397373720,1.226021,58546.0,58542.0,0.14]
[1617397373919,0.256021,58546.0,58542.0,0.14]
[1617397375792,0.206021,58546.0,58541.0,0.865]
[1617397375998,0.171021,58546.0,58541.0,1.22195155]
[1617397376193,1.141021,58546.0,58541.0,0.85]
[1617397376993,1.141021,58546.0,58541.0,1.02]
[1617397377399,1.141021,58546.0,58541.0,0.17]
[1617397377593,0.171021,58546.0,58541.0,0.17]
[1617397378001,0.171021,58546.0,58542.0,0.32990109]
[1617397378198,0.171021,58546.0,58542.0,0.78136109]
[1617397378397,0.171021,58546.0,58543.0,0.365]
[1617397379597,0.171021,58546.0,58544.0,0.38804]
[1617397379999,0.41613322,58553.0,58544.0,0.75999155]
[1617397380197,0.41813322,58553.0,58543.0,0.365]
[1617397380398,0.41813322,58553.0,58543.0,0.73995936]
[1617397380597,0.41813322,58553.0,58543.0,0.36800781]
[1617397380800,0.41813322,58553.0,58543.0,0.365]
[1617397380999,0.255998,58550.0,58543.0,0.365]
[1617397381203,0.257998,58550.0,58543.0,0.365]
[1617397381398,0.2550469,58550.0,58543.0,0.365]
[1617397381600,1.2250469,58550.0,58543.0,0.365]
[1617397382002,0.2500469,58550.0,58543.0,0.365]
[1617397383021,1.2200469,58550.0,58543.0,0.365]
[1617397383224,0.2500469,58550.0,58541.0,0.17]
[1617397383624,0.97,58549.0,58541.0,0.54195155]
[1617397383827,0.41808994,58553.0,58541.0,0.54195155]
[1617397384023,0.97,58552.0,58542.0,0.31]
[1617397384224,0.972,58552.0,58542.0,0.31]
[1617397384425,0.97,58551.0,58541.0,0.54195155]
[1617397384631,0.97,58551.0,58541.0,0.17]
[1617397384632,0.256012,58546.0,58541.0,0.17]
[1617397384834,0.97,58545.0,58540.0,13.002792]
[1617397385028,0.2396123,58544.0,58541.0,0.37195155]
[1617397385225,0.97,58543.0,58540.0,13.002792]
[1617397385447,0.97,58544.0,58541.0,0.17]
[1617397385646,0.97,58549.0,58541.0,0.355]
[1617397386045,0.256053,58543.0,58541.0,0.54195155]
[1617397386246,0.97,58542.0,58541.0,0.17]
[1617397386844,0.965,58542.0,58541.0,0.17]
[1617397387044,1.2164565,58543.0,58541.0,0.17]
[1617397387245,0.255553,58543.0,58541.0,0.17]
[1617397387443,0.9604035,58542.0,58541.0,0.17]
[1617397387644,0.255553,58543.0,58541.0,0.17]
[1617397388877,0.255553,58543.0,58541.0,0.54195155]
[1617397389334,0.255553,58543.0,58540.0,12.995792]
[1617397389533,0.255553,58543.0,58541.0,0.89195155]
[1617397389733,0.00756002,58542.0,58541.0,0.89195155]
[1617397389930,0.00756002,58542.0,58541.0,0.54195155]
[1617397390132,0.00756002,58542.0,58541.0,0.17]
[1617397391334,0.00756002,58542.0,58541.0,0.54195155]
[1617397392335,0.00256002,58542.0,58541.0,0.54195155]
[1617397393136,0.96296352,58542.0,58541.0,0.54195155]
[1617397393335,0.35078002,58542.0,58541.0,0.54195155]
[1617397393535,0.56578002,58542.0,58541.0,0.54195155]
[1617397393735,0.61578002,58542.0,58541.0,0.54195155]
[1617397394337,0.65578002,58542.0,58541.0,0.54195155]
[1617397394534,0.75578002,58542.0,58541.0,0.54195155]
[1617397394735,0.56578002,58542.0,58541.0,0.54195155]
[1617397395135,0.57078009,58542.0,58541.0,0.17]
[1617397395944,0.56822007,58542.0,58540.0,12.994426]
[1617397396145,2.591075,58541.0,58540.0,12.994426]
[1617397396347,2.376075,58541.0,58540.0,12.994426]
[1617397396545,3.3364785,58541.0,58540.0,12.994426]
[1617397396746,2.376075,58541.0,58540.0,12.994426]
[1617397396950,3.3364785,58541.0,58540.0,12.994426]
[1617397397149,2.866075,58541.0,58540.0,12.994426]
[1617397397348,3.8264785,58541.0,58540.0,12.994426]
[1617397398570,4.0334785,58541.0,58540.0,12.994426]
[1617397398769,4.0334785,58541.0,58540.0,12.824426]
[1617397399370,4.1734785,58541.0,58540.0,12.824426]
[1617397400574,4.7434785,58541.0,58540.0,12.824426]
[1617397400776,4.7434785,58541.0,58540.0,12.64866075]
[1617397400972,4.7434785,58541.0,58540.0,10.04312694]
[1617397400973,2.3034785,58541.0,58540.0,10.04312694]
[1617397401207,2.6934785,58541.0,58540.0,8.75312694]
[1617397401406,2.73545208,58541.0,58540.0,8.06999894]
[1617397401606,2.76269265,58541.0,58540.0,8.06999894]
[1617397401802,2.76565193,58541.0,58540.0,7.89921694]
[1617397402003,2.38241791,58541.0,58540.0,7.55765294]
[1617397402206,2.78241791,58541.0,58540.0,6.87448894]
[1617397402405,2.78241791,58541.0,58540.0,6.76448894]
[1617397402605,4.00241791,58541.0,58540.0,5.69688994]
[1617397402802,4.00241791,58541.0,58540.0,5.22368994]
[1617397403003,4.28269265,58541.0,58540.0,4.76739094]
[1617397403204,4.28269265,58541.0,58540.0,4.42577494]
[1617397403407,2.68269265,58541.0,58540.0,4.42577494]
[1617397404022,2.63269265,58541.0,58540.0,4.42577494]
[1617397404285,2.63269265,58541.0,58540.0,4.41577494]
[1617397404888,2.63269265,58541.0,58540.0,4.41077494]
[1617397406085,2.68269265,58541.0,58540.0,4.41077494]
[1617397406282,2.68269265,58541.0,58540.0,4.39577494]
[1617397407489,2.63269265,58541.0,58540.0,4.39577494]
[1617397407690,1.67228915,58541.0,58540.0,4.39577494]
[1617397408097,1.02528915,58541.0,58540.0,4.39577494]
[1617397408293,0.72528915,58541.0,58540.0,4.39577494]
[1617397408490,0.696075,58541.0,58540.0,4.39577494]
[1617397408691,0.696075,58541.0,58540.0,4.39550494]
[1617397408895,0.871075,58541.0,58540.0,4.38550494]
[1617397409289,0.621075,58541.0,58540.0,4.38550494]
[1617397410689,0.616075,58541.0,58540.0,4.38550494]
[1617397411491,0.616075,58541.0,58540.0,4.38050494]
[1617397413905,0.36,58541.0,58540.0,4.38050494]
[1617397415328,0.185,58541.0,58540.0,4.38050494]
[1617397415527,0.045,58541.0,58540.0,4.38050494]
[1617397415731,0.25609,58545.0,58540.0,4.38050494]
[1617397415929,0.25609,58545.0,58540.0,4.37550494]
[1617397416333,0.02921415,58551.0,58540.0,4.37550494]
[1617397416527,2.5292,58547.0,58540.0,4.37550494]
[1617397417745,0.33,58546.0,58540.0,4.37550494]
[1617397418344,2.5222,58547.0,58540.0,4.37550494]
[1617397418545,0.1,58546.0,58540.0,4.37550494]
[1617397418745,0.1,58546.0,58540.0,4.37050494]
[1617397419445,0.25681204,58545.0,58540.0,4.37050494]
[1617397419695,0.1,58546.0,58540.0,4.36550494]
[1617397420283,0.255,58544.0,58540.0,4.36550494]
[1617397420684,0.305,58544.0,58540.0,4.36550494]
[1617397421083,0.1,58543.0,58540.0,4.36550494]
[1617397421285,0.0162,58541.0,58540.0,4.36550494]
[1617397424104,0.0162,58541.0,58540.0,4.36050494]
[1617397425124,0.0162,58541.0,58540.0,4.40850494]
[1617397428954,0.0162,58541.0,58540.0,4.36550494]
[1617397429355,0.0112,58541.0,58540.0,4.36550494]
[1617397429755,0.0112,58541.0,58540.0,4.78050494]
[1617397430775,0.0112,58541.0,58540.0,4.40050494]
[1617397432809,0.0112,58541.0,58540.0,4.65654394]
[1617397433610,0.0112,58541.0,58540.0,4.40050494]
[1617397434006,0.13863144,58553.0,58540.0,4.40050494]
[1617397434209,0.052,58553.0,58540.0,4.54550494]
[1617397434482,0.002,58553.0,58540.0,4.40050494]
[1617397434884,0.2,58552.0,58540.0,4.40050494]
[1617397435082,0.252,58552.0,58540.0,4.40050494]
[1617397435481,0.35,58551.0,58540.0,4.40050494]
[1617397435679,0.002,58551.0,58540.0,4.40050494]
[1617397438190,0.002,58551.0,58544.0,0.256026]
[1617397438391,0.30296234,58567.0,58560.0,0.58046294]
[1617397438590,0.38804,58561.0,58560.0,0.58046294]
[1617397438794,0.39004,58561.0,58560.0,0.62746294]
[1617397439788,0.38504,58561.0,58560.0,0.62746294]
[1617397439985,0.38504,58561.0,58560.0,0.58046294]
[1617397441791,0.38504,58561.0,58560.0,0.67646294]
[1617397441792,0.002,58561.0,58560.0,0.67646294]
[1617397442197,0.1444,58566.0,58560.0,0.82646294]
[1617397442391,0.1444,58566.0,58560.0,0.99646294]
[1617397442590,0.002,58566.0,58560.0,0.99646294]
[1617397442789,0.002,58566.0,58561.0,0.16]
[1617397442990,0.002,58566.0,58562.0,0.097]
[1617397443805,0.002,58566.0,58562.0,0.177]
[1617397444007,0.002,58566.0,58563.0,0.185]
[1617397444207,0.002,58566.0,58564.0,0.312]
[1617397444405,0.11757907,58577.0,58564.0,0.312]
[1617397444603,0.11957907,58577.0,58564.0,0.312]
[1617397444806,0.00197975,58575.0,58564.0,0.312]
[1617397445001,0.00397975,58575.0,58564.0,0.312]
[1617397445203,0.00397975,58575.0,58564.0,0.392]
[1617397445404,0.002,58575.0,58565.0,0.235]
[1617397445830,0.002,58575.0,58566.0,0.097]
[1617397446026,0.387986,58571.0,58566.0,0.097]
[1617397446228,0.002,58571.0,58566.0,0.097]
[1617397446428,0.002,58571.0,58566.0,0.177]
[1617397447032,0.0025566,58570.0,58566.0,0.177]
[1617397447229,0.0045566,58570.0,58566.0,0.177]
[1617397451332,0.0030566,58570.0,58566.0,0.177]
[1617397451734,0.002,58570.0,58566.0,0.177]
[1617397453535,0.002,58570.0,58566.0,0.432945]
[1617397453937,0.4000136,58579.0,58566.0,0.432945]
[1617397454138,0.387986,58578.0,58566.0,0.432945]
[1617397454340,0.389986,58578.0,58566.0,0.432945]
[1617397454537,0.002,58578.0,58566.0,0.432945]
[1617397455235,0.3970136,58579.0,58566.0,0.432945]
[1617397455439,0.3990136,58579.0,58566.0,0.432945]
[1617397455639,0.387986,58575.0,58566.0,0.432945]
[1617397455842,0.2970136,58579.0,58566.0,0.432945]
[1617397456038,0.2940136,58579.0,58566.0,0.432945]
[1617397456240,0.387986,58578.0,58566.0,0.432945]
[1617397456439,0.384986,58578.0,58566.0,0.432945]
[1617397456637,0.155,58577.0,58566.0,0.335945]
[1617397456840,0.155,58577.0,58566.0,0.255945]
[1617397457042,0.157,58577.0,58566.0,0.255945]
[1617397457238,0.207,58577.0,58566.0,0.255945]
[1617397457439,0.052,58577.0,58566.0,0.255945]
[1617397457841,0.002,58577.0,58566.0,0.255945]
[1617397458839,0.002,58577.0,58565.0,0.004]
[1617397459069,0.002,58577.0,58566.0,0.175]
[1617397459264,0.002,58577.0,58561.0,0.0044]
[1617397459869,0.002,58577.0,58566.0,0.0056]
[1617397460265,0.002,58577.0,58567.0,0.059]
[1617397460471,0.002,58577.0,58568.0,0.05]
[1617397460866,0.002,58577.0,58569.0,0.059]
[1617397461464,0.1944,58581.0,58569.0,0.059]
[1617397461687,0.387964,58580.0,58569.0,0.059]
[1617397461886,0.389964,58580.0,58569.0,0.059]
[1617397462091,0.389964,58580.0,58569.0,0.314921]
[1617397462298,0.389964,58580.0,58570.0,0.20813532]
[1617397462495,0.002,58580.0,58570.0,0.20813532]
[1617397462694,0.002,58580.0,58571.0,0.059]
[1617397463291,0.002,58580.0,58572.0,1.22]
[1617397463491,0.002,58580.0,58573.0,0.2]
[1617397463696,0.002,58580.0,58575.0,0.255896]
[1617397463893,0.002,58580.0,58576.0,0.058]
[1617397464570,0.002,58580.0,58575.0,0.058]
[1617397464767,0.002,58580.0,58575.0,0.193]
[1617397464967,0.002,58580.0,58575.0,0.243]
[1617397465766,0.002,58580.0,58578.0,0.25587]
[1617397466169,0.1474,58587.0,58581.0,0.218]
[1617397466373,0.1494,58587.0,58581.0,0.268]
[1617397466769,0.1444,58587.0,58582.0,0.165]
[1617397466968,0.1474,58586.0,58582.0,0.165]
[1617397467366,0.1494,58586.0,58582.0,0.165]
[1617397467576,0.1474,58585.0,58583.0,0.239]
[1617397467773,0.1494,58585.0,58583.0,0.289]
[1617397467970,0.1444,58585.0,58583.0,0.289]
[1617397468168,0.1444,58585.0,58584.0,0.19]
[1617397468369,0.1394,58585.0,58584.0,0.19]
[1617397469369,0.1394,58585.0,58583.0,0.109]
[1617397471970,0.1344,58585.0,58583.0,0.109]
[1617397472185,0.002,58585.0,58583.0,0.109]
[1617397472791,0.002,58585.0,58583.0,0.104]
[1617397473383,0.1244,58596.0,58583.0,0.104]
[1617397473585,0.052,58596.0,58583.0,0.104]
[1617397473785,0.002,58596.0,58583.0,0.104]
[1617397473985,0.002,58596.0,58586.0,0.0058]
[1617397474383,0.002,58596.0,58586.0,0.0458]
[1617397474584,0.002,58596.0,58587.0,0.056]
[1617397474810,0.387964,58592.0,58586.0,0.0058]
[1617397475014,0.387964,58588.0,58586.0,0.0058]
[1617397475213,0.145,58596.0,58585.0,0.255846]
[1617397475414,0.147,58596.0,58585.0,0.255846]
[1617397475609,0.002,58596.0,58585.0,0.255846]
[1617397479226,0.002,58596.0,58585.0,0.250846]
[1617397479952,0.002,58596.0,58586.0,0.2596374]
[1617397481349,0.254847,58599.0,58586.0,0.2596374]
[1617397481552,0.254847,58599.0,58587.0,0.0046]
[1617397481748,0.256847,58599.0,58587.0,0.0046]
[1617397485201,0.002,58599.0,58587.0,0.0046]
[1617397487007,0.387964,58595.0,58587.0,0.0046]
[1617397487208,0.387964,58591.0,58587.0,0.0046]
[1617397487404,0.2566374,58601.0,58585.0,0.250846]
[1617397487605,0.387964,58600.0,58588.0,0.006]
[1617397487834,0.387964,58596.0,58588.0,0.006]
[1617397488035,0.387964,58592.0,58585.0,0.250846]
[1617397488235,0.2596374,58601.0,58588.0,0.006]
[1617397488438,0.387964,58597.0,58588.0,0.006]
[1617397488634,0.387964,58593.0,58588.0,0.006]
[1617397488834,0.2596374,58601.0,58588.0,0.006]
[1617397489032,0.387964,58597.0,58588.0,0.006]
[1617397489235,0.387964,58593.0,58585.0,0.250846]
[1617397489435,0.2596374,58601.0,58581.0,0.02896993]
[1617397489436,0.2596374,58601.0,58589.0,0.006]
[1617397489635,0.387964,58597.0,58589.0,0.006]
[1617397489835,0.387964,58593.0,58587.0,0.255835]
[1617397490035,0.2596374,58601.0,58589.0,0.006]
[1617397490234,0.382964,58597.0,58589.0,0.006]
[1617397490456,0.387919,58596.0,58589.0,0.006]
[1617397490660,0.389919,58596.0,58589.0,0.006]
[1617397490856,0.002,58596.0,58589.0,0.006]
[1617397491062,0.002,58596.0,58589.0,0.23503506]
[1617397493103,0.002,58596.0,58593.0,0.145]
[1617397495141,0.002,58596.0,58594.0,0.255784]
[1617397497346,0.73594607,58613.0,58595.0,0.72]
[1617397497548,0.387919,58609.0,58594.0,0.255784]
[1617397497748,0.387919,58605.0,58595.0,0.004]
[1617397497947,0.387919,58601.0,58595.0,0.004]
[1617397498146,0.387919,58597.0,58594.0,0.250784]
[1617397498345,0.2596374,58607.0,58595.0,0.005]
[1617397498547,0.387919,58603.0,58595.0,0.005]
[1617397498753,0.24,58602.0,58596.0,0.255793]
[1617397498948,0.242,58602.0,58596.0,0.255793]
[1617397499344,0.002,58602.0,58596.0,0.255793]
[1617397502954,0.252795,58611.0,58596.0,0.255793]
[1617397503156,0.387919,58607.0,58596.0,0.255793]
[1617397503355,0.387919,58603.0,58596.0,0.255793]
[1617397503610,0.387919,58599.0,58596.0,0.255793]
[1617397503804,0.9604035,58610.0,58599.0,0.38]
[1617397504003,0.387919,58606.0,58599.0,0.38]
[1617397504205,0.387919,58602.0,58599.0,0.38]
[1617397504400,0.002,58602.0,58599.0,0.38]
[1617397506432,0.002,58602.0,58599.0,0.5677283]
[1617397506633,0.002,58602.0,58600.0,0.1877047]
[1617397506832,0.002,58602.0,58599.0,0.38]
[1617397507233,0.002,58602.0,58601.0,0.255777]
[1617397507430,0.002,58602.0,58601.0,0.425777]
[1617397509681,0.02921415,58618.0,58601.0,0.425777]
[1617397509884,0.362919,58616.0,58604.0,0.0074]
[1617397510084,0.31,58615.0,58604.0,0.0074]
[1617397510280,0.387919,58611.0,58604.0,0.0074]
[1617397510480,0.389919,58611.0,58604.0,0.0074]
[1617397510681,0.002,58611.0,58604.0,0.0074]
[1617397510885,0.002,58611.0,58605.0,0.135]
[1617397511082,0.002,58611.0,58607.0,0.255757]
[1617397512686,0.9604035,58610.0,58607.0,0.255757]
[1617397512892,0.387885,58608.0,58599.0,0.549]
[1617397513088,0.387885,58604.0,58599.0,0.553]
[1617397513283,0.14,58609.0,58599.0,0.384]
[1617397513486,1.3482885,58608.0,58599.0,0.384]
[1617397513685,1.3482885,58608.0,58599.0,0.38]
[1617397513686,0.387885,58604.0,58599.0,0.38]
[1617397513887,2.83861036,58626.0,58599.0,0.38]